[Event "97th Argentine Championship 2022"]
[Site "Barichole"]
[Date "2022.12.08"]
[Round "9.5"]
[White "Flores, Diego"]
[Black "Sorin, Ariel"]
[Result "1/2-1/2"]
[ECO "A36"]
[WhiteElo "2547"]
[BlackElo "2363"]
[Annotator "TA"]
[PlyCount "142"]
[EventDate "2022.12.01"]
[EventType "tourn"]
[EventCountry "ARG"]
[SourceTitle "playchess.com"]
[Source "ChessBase"]
[SourceQuality "1"]
[TimeControl "40/5400+30:1800+30"]

{[%evp 9,142,2,4,0,0,0,5,0,12,0,4,0,0,-4,0,0,0,0,0,-48,-33,-56,-31,-27,-9,-51,-35,-54,-22,-50,22,2,0,9,8,0,3,12,14,17,26,19,9,22,15,25,34,0,0,0,20,0,28,0,14,0,74,62,100,82,89,93,82,96,88,81,93,81,94,93,101,60,60,43,51,0,83,58,58,58,102,102,109,83,133,102,133,133,223,223,284,146,807,283,979,66,954,799,4358,7983,6548,6427,5634,4134,5864,0,0,0,0,0,0,0,0,0,0,0,0,0,0,0,0,0,0,0,0,0,0,0,0,0,0,0,0,0,0]} 1. c4 {[%emt 0:01:30]} g6 {[%emt 0:00:18]} 2. Nc3 {[%emt 0:00:33]} Bg7 {[%emt 0:00:05]} 3. g3 {[%emt 0:00:13]} c5 {[%emt 0:01:40]} 4. Bg2 {[%emt 0:00:22]} Nc6 {[%emt 0:00:04]} 5. d3 {[%emt 0:02:13]} d6 {[%emt 0:02:29]} 6. Qd2 {[%emt 0:00:17] A36: Symmetrical English vs ...g6: 4 Bg2 Bg7.} Nf6 {[%emt 0:06:32]} 7. b3 {[%emt 0:01:58]} O-O {[%emt 0:02:38]} 8. Bb2 {[%emt 0:00:21]} e5 {[%emt 0:01:30]} 9. Nf3 {[%emt 0:19:26]} h6 {[%emt 0:03:10]} 10. O-O {[%emt 0:01:17]} Be6 {[%emt 0:00:40] [#]} 11. a3 $146 {[%emt 0:06:40]} ({Predecessor:} 11. e3 d5 12. Na4 Qd6 13. Ba3 b6 14. cxd5 Bxd5 15. Nc3 Be6 16. d4 exd4 17. exd4 Rfd8 {0-1 (44) Nikitenko,M (2506)-Strybuk,A (2230) Minsk 2022}) 11... Qd7 {[%emt 0:09:15]} 12. b4 {[%emt 0:04:03]} cxb4 {[%emt 0:04:34]} 13. axb4 {[%emt 0:01:59]} Nxb4 {[%emt 0:00:06]} 14. Nb5 {[%emt 0:10:21]} (14. Ne4 $11 Nxe4 15. Qxb4) 14... Nc6 $15 {[%emt 0:02:01]} 15. Ba3 {[%emt 0:02:20]} Ne8 {[%emt 0:00:36]} (15... e4 {keeps more tension.} 16. Ne1 Rfd8 17. Rb1 d5) 16. Rfb1 {[%emt 0:03:06]} f5 {[%emt 0:02:50]} 17. Nc3 {[%emt 0:18:27]} (17. d4 $5 e4 18. d5 Bxa1 19. Rxa1 exf3 20. dxe6 Qxe6 21. Bxf3 $15) 17... Rf7 {[%emt 0:01:35]} 18. Ne1 {[%emt 0:01:53]} Nf6 {[%emt 0:02:52][%cal Of5f4]} 19. Nc2 {[%emt 0:00:54]} d5 {[%emt 0:03:55]} (19... f4 $15) 20. cxd5 {[%emt 0:00:48]} (20. Nxd5 {seems wilder.} Nxd5 21. cxd5 Bxd5 22. Rxb7 Qxb7 23. Bxd5 a5 24. Rc1) 20... Nxd5 {[%emt 0:00:04]} 21. Nxd5 {[%emt 0:00:14]} Bxd5 {[%emt 0:00:35] [#]} 22. Rxb7 $1 {[%emt 0:00:10][%mdl 64]} Qxb7 {[%emt 0:54:01]} 23. Bxd5 {[%emt 0:00:14][%cal Oc2b4]} Rd8 {[%emt 0:00:00]} 24. Ba2 {[%emt 0:03:14] This pair of bishops is nice.} (24. Bxf7+ {simplifies} Qxf7 25. Bb2 Qb7 26. Qc1) 24... e4 {[%emt 0:00:00]} 25. Rb1 {[%emt 0:02:03]} Qd7 {[%emt 0:00:00]} (25... Qc7 {is more complex.} 26. Nb4 Nxb4 27. Bxb4 exd3 28. exd3 Qd7) 26. d4 {[%emt 0:04:40]} Kh7 {[%emt 0:00:00][%cal Rg7d4] Strongly threatening ...Bxd4!} 27. Bxf7 {[%emt 0:00:45]} Qxf7 {[%emt 0:00:00]} 28. Bc5 {[%emt 0:00:29]} Qc4 {[%emt 0:00:00] Hoping for ...Qxc5.} 29. Qd1 {[%emt 0:02:49]} Qc3 {[%emt 0:00:00]} 30. Rc1 {[%emt 0:01:45]} Qb2 {[%emt 0:00:00][%cal Rc6d4]} 31. Rb1 {[%emt 0:01:24]} Qc3 {[%emt 0:00:00]} 32. Kg2 {[%emt 0:01:22]} Rd7 {[%emt 0:00:00]} (32... Nxd4 33. Bxd4 Bxd4 34. Nxd4 Rxd4 35. Rb7+ Kh8 36. Qb1 $18) (32... Bxd4 $2 33. Bxd4 Nxd4 34. Rb7+ Kg8 35. Nxd4 Qxd4 36. Qc1 $18) (32... a5 $11 {remains equal.}) 33. e3 $16 {[%emt 0:00:18]} Qa5 {[%emt 0:00:00]} 34. Qe2 {[%emt 0:00:47]} Qa4 {[%emt 0:00:00]} 35. Ra1 {[%emt 0:00:45][%cal Bb1a1,Ba1a3,Ba3a5][%mdl 32]} Qb3 {[%emt 0:00:00]} 36. Ra3 {[%emt 0:03:44] Inhibits a5.} Qd5 {[%emt 0:00:00]} 37. Nb4 {[%emt 0:01:38] Prevents a5.} Nxb4 {[%emt 0:00:00]} 38. Bxb4 {[%emt 0:00:01]} g5 {[%emt 0:00:00][%cal Of5f4]} 39. Ra5 {[%emt 0:00:39] Inhibits f4.} Qe6 {[%emt 0:00:00][%cal Of5f4]} 40. Qa2 {[%emt 0:00:00] Prevents f4.} Qg6 {[%emt 0:00:00]} 41. h3 {[%emt 0:23:19]} Rb7 {[%emt 0:00:00]} 42. Bc5 {[%emt 0:00:16]} (42. Rxa7 $2 {too greedy.} Rxb4 43. Qa5 Rb1 $19) ({Better is} 42. Bc3 $14) 42... f4 {[%emt 0:00:00]} (42... Qh5 $11) 43. Rxa7 {[%emt 0:00:20]} (43. Ra6 {is interesting.} Rb2 44. Qa1 f3+ 45. Kg1) 43... Rxa7 {[%emt 0:00:00]} 44. Bxa7 {[%emt 0:00:04][%cal Bc5a7,Ba7b8,Bb8g3,Bg3h4][%mdl 32]} ({Much weaker is} 44. Qxa7 fxe3 45. d5 (45. fxe3 Qf5 $11) 45... exf2 $11) 44... fxe3 {[%emt 0:00:07]} 45. fxe3 {[%emt 0:00:10][%mdl 4096] Endgame KQB-KQB} Qf5 {[%emt 0:03:34] Against Qd5} 46. Qe2 {[%emt 0:00:39] Inhibits Qf3+.} Bf8 {[%emt 0:07:00]} (46... Qf7 $142) 47. Bb8 {[%emt 0:01:04]} Bg7 {[%emt 0:01:49]} 48. g4 {[%emt 0:00:35]} Qf8 {[%emt 0:06:43]} (48... Qd5 $16 49. Qc2 Bf6) 49. Bg3 $18 {[%emt 0:00:30]} Qf7 {[%emt 0:02:06]} 50. Qf2 {[%emt 0:01:30]} Kg6 {[%emt 0:05:51][%mdl 8192]} (50... Qe6 $16 51. Qc2 Kg6) 51. Qxf7+ $1 {[%emt 0:01:39]} Kxf7 {[%emt 0:00:06] KB-KB} 52. d5 $2 {[%emt 0:00:04]} ({White must play} 52. h4 $18 gxh4 53. Bxh4) 52... Ke8 $2 {[%emt 0:03:11][%mdl 8192] [#]} (52... Ke7 $14) 53. h4 $1 {[%emt 0:02:39]} gxh4 {[%emt 0:03:07]} 54. Bxh4 {[%emt 0:00:10]} (54. Bf4 $142 Kf7 55. d6) 54... Kd7 {[%emt 0:00:11]} 55. Bg3 {[%emt 0:00:06]} Bf6 {[%emt 0:00:13]} 56. Bf4 {[%emt 0:00:16]} Bg5 {[%emt 0:00:08] [#]} 57. Kf2 $2 {[%emt 0:00:12]} (57. Kf1 $1 $18 {Threatens to win with Ke1.} Ke7 58. Kf2) 57... Bxf4 $11 {[%emt 0:01:37] The position is equal.} 58. exf4 {[%emt 0:00:04] Threatening mate with Ke3. K3P-KPP} Kd6 {[%emt 0:00:09]} 59. Ke2 {[%emt 0:00:13]} Kc5 $1 {[%emt 0:00:14]} 60. Kd2 {[%emt 0:02:52]} Kd6 $1 {[%emt 0:00:20]} 61. Kc2 {[%emt 0:02:37]} Kxd5 {[%emt 0:04:52] KPP-KPP} 62. Kc3 {[%emt 0:00:18]} Kc5 {[%emt 0:02:02]} 63. Kd2 {[%emt 0:00:24]} Kd6 {[%emt 0:00:23]} 64. Ke2 {[%emt 0:00:40]} Ke6 {[%emt 0:00:23]} 65. Kf2 {[%emt 0:00:22]} Kd6 $1 {[%emt 0:00:35]} 66. Ke1 {[%emt 0:00:41]} Ke6 {[%emt 0:01:13]} 67. Kd1 {[%emt 0:01:02]} (67. Ke2 $5) 67... Kd5 {[%emt 0:00:38]} 68. Kc2 {[%emt 0:00:29]} Kd6 {[%emt 0:01:04]} 69. Kb3 {[%emt 0:00:44] Kc4 would kill now.} Kd5 {[%emt 0:00:30]} 70. Kc3 {[%emt 0:00:17]} Kc5 {[%emt 0:00:22]} 71. g5 {[%emt 0:00:41]} hxg5 {[%emt 0:00:14] Black defended with fortune.   Weighted Error Value: White=0.32/Black=0.20 (precise)} 1/2-1/2

[Event "97th Argentine Championship 2022"]
[Site "Barichole"]
[Date "2022.12.08"]
[Round "9.6"]
[White "Paveto, Kevin"]
[Black "Perez Ponsa, Federico"]
[Result "1/2-1/2"]
[ECO "B33"]
[WhiteElo "2431"]
[BlackElo "2538"]
[Annotator "TA"]
[PlyCount "37"]
[EventDate "2022.12.01"]
[EventType "tourn"]
[EventCountry "ARG"]
[SourceTitle "playchess.com"]
[Source "ChessBase"]
[SourceQuality "1"]
[TimeControl "40/5400+30:1800+30"]

{[%evp 20,37,32,36,29,33,43,0,0,0,43,0,16,0,38,0,0,0,51,0]} 1. e4 {[%emt 0:00:53] So,Wesley} c5 {[%emt 0:01:10]} 2. Nf3 {[%emt 0:00:17][%cal Bg1f3,Bf3d4,Bd4b5][%mdl 32]} Nc6 {[%emt 0:00:11]} 3. d4 {[%emt 0:01:01]} cxd4 {[%emt 0:02:04]} 4. Nxd4 {[%emt 0:00:44]} Nf6 {[%emt 0:00:10]} 5. Nc3 {[%emt 0:00:07]} e5 {[%emt 0:00:22]} 6. Ndb5 {[%emt 0:00:19]} d6 {[%emt 0:00:09]} 7. Nd5 {[%emt 0:01:03]} Nxd5 {[%emt 0:00:20]} 8. exd5 {[%emt 0:00:08]} Ne7 {[%emt 0:01:44]} 9. c4 {[%emt 0:02:05]} Ng6 {[%emt 0:00:46]} 10. Qa4 {[%emt 0:01:19]} Bd7 {[%emt 0:00:08]} 11. Qb4 $1 {[%emt 0:00:05]} Bf5 {[%emt 0:00:10] B33: Sicilian: Pelikan and Sveshnikov Variations.} 12. h4 {[%emt 0:01:11]} h5 {[%emt 0:00:37]} 13. Qa4 {[%emt 0:00:51]} (13. Bg5 {looks sharper.} Qb8 14. Be2 a6 15. Nc3) 13... Bd7 $1 {[%emt 0:00:57] [#] ...a6 is the strong threat. The position is equal.} 14. Qb4 {[%emt 0:00:32]} Bf5 $1 {[%emt 0:01:33]} 15. Qa4 {[%emt 0:01:04]} (15. Bg5 $5 {[%cal Rg5d8]} f6 16. Be3 $14) 15... Bd7 $1 {[%emt 0:00:24] White must now prevent ...a6.} 16. Qb4 $36 {[%emt 0:00:07][%mdl 2048] White has the initiative.} (16. Bg5 $5 {[%cal Rg5d8]} f6 17. Qc2 $11) 16... Bf5 {[%emt 0:00:45]} 17. Qa4 {[%emt 0:00:12]} (17. Bg5 $5 {[%cal Rg5d8]} f6 18. Be3 $14) 17... Bd7 $1 {[%emt 1:27:30] [#] Threatens to win with ...a6.} 18. Qb4 {[%emt 1:27:32]} Bf5 $1 {[#]} 19. Qa4 $146 {[%emt 0:00:30] Weighted Error Value: White=0.15 (very precise) /Black=0.01 (flawless)} (19. Bg5 $14 f6 20. Be3) ({Predecessor:} 19. Be3 a6 20. Nc3 Qc7 21. g3 Be7 22. f3 Nf8 23. Ne4 Nd7 24. Bd3 O-O 25. Rh2 Rac8 26. O-O-O Bg6 27. Rc2 f5 28. Nf2 Nc5 29. f4 a5 {½-½ (31) Caruana,F (2832)-Carlsen,M (2835) London 2018 CBM 187 [So,Wesley]}) 1/2-1/2

[Event "97th Argentine Championship 2022"]
[Site "Barichole"]
[Date "2022.12.09"]
[Round "10.1"]
[White "Fiorito, Joaquin"]
[Black "Peralta, Fernando"]
[Result "1/2-1/2"]
[ECO "C10"]
[WhiteElo "2344"]
[BlackElo "2587"]
[Annotator "TA"]
[PlyCount "68"]
[EventDate "2022.12.01"]
[EventType "tourn"]
[EventCountry "ARG"]
[SourceTitle "playchess.com"]
[Source "ChessBase"]
[SourceQuality "1"]
[TimeControl "40/5400+30:1800+30"]

{[%evp 14,68,23,9,16,26,16,20,14,8,18,14,12,9,10,10,15,16,12,10,9,6,11,0,0,0,0,6,12,-12,14,8,15,2,7,0,2,6,6,7,0,0,0,-6,0,0,0,0,0,0,0,0,18,20,17,8,49]} 1. e4 {[%emt 0:00:03]} e6 {[%emt 0:00:10]} 2. d4 {[%emt 0:00:07]} d5 {[%emt 0:00:04]} 3. Nc3 {[%emt 0:00:06]} Nf6 {[%emt 0:00:09]} 4. Bg5 {[%emt 0:00:04]} dxe4 {[%emt 0:00:40]} 5. Nxe4 {[%emt 0:00:07]} Nbd7 {[%emt 0:00:06]} 6. Nf3 {[%emt 0:00:20]} h6 {[%emt 0:00:30]} 7. Nxf6+ {[%emt 0:00:08]} Nxf6 {[%emt 0:00:04]} 8. Be3 $1 {[%emt 0:00:16][%mdl 4] now scores much better than the old 8.Bh4.} Bd6 {[%emt 0:05:32] C10: French with 3 Nc3: Unusual Black 3rd moves and 3...dxe4.} 9. Bd3 {[%emt 0:00:05]} O-O {[%emt 0:08:41]} 10. Qe2 {[%emt 0:00:05] The position is equal.} b6 {[%emt 0:00:25]} 11. O-O-O {[%emt 0:00:07][%cal Og2g4]} Bb7 {[%emt 0:00:06] Inhibits g4.} 12. Rhg1 {[%emt 0:00:22]} Nd5 $1 {[%emt 0:04:33]} 13. Bd2 {[%emt 0:00:07] Threatening Qe4.} Nf4 {[%emt 0:05:53]} 14. Bxf4 {[%emt 0:00:08]} Bxf4+ {[%emt 0:00:04]} 15. Kb1 {[%emt 0:00:03]} Qf6 {[%emt 0:06:34]} 16. Be4 {[%emt 0:16:53]} Bxe4 {[%emt 0:00:17]} 17. Qxe4 {[%emt 0:00:03]} Rad8 {[%emt 0:01:41] [#]} 18. Rge1 $146 {[%emt 0:07:44]} ({Predecessor:} 18. g3 Bd6 19. Qc6 e5 20. Rge1 exd4 21. Rxd4 Qg6 {½-½ (21) Papenin,N (2729)-Szczepanski,Z (2561) ICCF email 2012}) 18... Bd6 {[%emt 0:07:12]} 19. Qc6 {[%emt 0:20:51]} Qf5 {[%emt 0:01:55]} 20. a3 {[%emt 0:02:46]} Rfe8 {[%emt 0:04:04]} (20... Qd5 {simplifies} 21. Qxd5 exd5 22. c3 g5) 21. Rd2 {[%emt 0:08:40]} Re7 {[%emt 0:12:41]} (21... Qd5 {simplifies} 22. Qxd5 exd5 23. Rde2 Rxe2 24. Rxe2 Kf8) 22. Rde2 {[%emt 0:04:37]} Red7 {[%emt 0:01:20]} 23. h3 {[%emt 0:02:35]} a6 {[%emt 0:10:07]} 24. Ka1 {[%emt 0:06:36]} Qb5 {[%emt 0:02:28]} 25. Qxb5 {[%emt 0:02:02]} axb5 {[%emt 0:01:17]} 26. c3 {[%emt 0:00:30]} c5 {[%emt 0:04:27]} 27. Rd1 {[%emt 0:02:16]} Be7 {[%emt 0:03:41]} 28. Red2 {[%emt 0:01:44]} Bg5 {[%emt 0:00:17]} 29. Nxg5 {[%emt 0:04:14]} hxg5 $11 {[%emt 0:00:05] KRR-KRR} 30. Kb1 {[%emt 0:00:05]} e5 {[%emt 0:03:06]} 31. Kc2 {[%emt 0:00:37] [#] Hoping for dxc5.} cxd4 {[%emt 0:01:04]} 32. cxd4 {[%emt 0:00:08]} exd4 {[%emt 0:00:05]} 33. Kd3 {[%emt 0:00:07]} Rc8 {[%emt 0:01:26]} 34. Re1 {[%emt 0:00:35][%mdl 1024] White has compensation.} g6 {[%emt 0:06:08] An even fight not without its subleties.   Weighted Error Value: White=0.03 (flawless) /Black=0.03 (flawless)} 1/2-1/2

[Event "97th Argentine Championship 2022"]
[Site "Barichole"]
[Date "2022.12.09"]
[Round "10.2"]
[White "Perez Ponsa, Federico"]
[Black "Flores, Diego"]
[Result "1/2-1/2"]
[ECO "C47"]
[WhiteElo "2538"]
[BlackElo "2547"]
[Annotator "TA"]
[PlyCount "61"]
[EventDate "2022.12.01"]
[EventType "tourn"]
[EventCountry "ARG"]
[SourceTitle "playchess.com"]
[Source "ChessBase"]
[SourceQuality "1"]
[TimeControl "40/5400+30:1800+30"]

{[%evp 16,61,12,6,10,6,6,6,6,6,6,6,7,9,0,0,0,4,0,0,0,4,8,0,5,4,19,14,14,12,12,0,0,0,0,0,0,0,0,0,0,0,0,0,0,0,0,0]} 1. e4 {[%emt 0:03:59]} e5 {[%emt 0:00:20]} 2. Nf3 {[%emt 0:00:07]} Nc6 {[%emt 0:00:06]} 3. d4 {[%emt 0:01:01]} exd4 {[%emt 0:00:14]} 4. Nxd4 {[%emt 0:00:05]} Nf6 {[%emt 0:02:10]} 5. Nc3 {[%emt 0:00:43]} Bb4 {[%emt 0:01:51]} 6. Nxc6 {[%emt 0:00:53]} bxc6 {[%emt 0:00:42]} 7. Bd3 {[%emt 0:00:07][%cal Bf1d3,Bd3e4,Be4c6][%mdl 32]} d5 {[%emt 0:00:36]} 8. Bd2 {[%emt 0:00:12]} O-O {[%emt 0:03:06]} 9. O-O {[%emt 0:00:07] The position is equal.} Bxc3 {[%emt 0:01:47] C47: Scotch Four Knights and Four Knights with 4 g3.} 10. Bxc3 {[%emt 0:00:08]} dxe4 $1 {[%emt 0:00:07][%mdl 4] now scores much better than the old 10...Nxe4.} 11. Bxf6 {[%emt 0:03:59][%mdl 64] [#] Remove Defender} Qxf6 {[%emt 0:00:19]} 12. Bxe4 {[%emt 0:00:04]} Qxb2 {[%emt 0:03:37]} 13. Bxc6 {[%emt 0:00:10]} Rb8 {[%emt 0:00:20]} 14. Rb1 {[%emt 0:01:56]} Qxb1 {[%emt 0:00:37]} 15. Qxb1 {[%emt 0:00:04]} Rxb1 {[%emt 0:00:04]} 16. Rxb1 $11 {[%emt 0:00:03][%mdl 4096] Endgame KRB-KRB} Rd8 {[%emt 0:02:37]} 17. Bf3 {[%emt 0:05:04]} Kf8 {[%emt 0:03:30]} 18. Rb8 {[%emt 0:02:38]} Re8 {[%emt 0:04:10][%cal Re8e1] [#]} 19. h4 {[%emt 0:00:15]} Ba6 {[%emt 0:01:00]} 20. Rb3 {[%emt 0:00:57]} Re1+ {[%emt 0:02:34]} 21. Kh2 {[%emt 0:00:05]} Re5 {[%emt 0:00:06] [#]} 22. Ra3 $146 {[%emt 0:01:47]} ({Predecessor:} 22. Rc3 Be2 23. Bxe2 Rxe2 24. Kg3 Re4 25. Rxc7 Ra4 26. c4 Rxa2 27. c5 a5 28. Ra7 a4 29. c6 Rc2 30. c7 Ke8 31. Rxa4 {½-½ (31) Mastrovasilis,D (2619)-Grischuk,A (2773) Terme Catez 2021}) 22... Be2 {[%emt 0:00:25]} 23. Bxe2 {[%emt 0:05:04]} Rxe2 {[%emt 0:00:13]} 24. Rxa7 {[%emt 0:00:30]} Rxc2 {[%emt 0:00:30] KR-KR} 25. Kg3 {[%emt 0:00:23]} c5 {[%emt 0:01:23][%cal Bc7c5,Bc5c4][%mdl 32]} 26. a4 {[%emt 0:00:16]} c4 {[%emt 0:00:32]} 27. a5 {[%emt 0:00:12]} c3 {[%emt 0:00:47]} 28. a6 {[%emt 0:00:17]} Ra2 {[%emt 0:00:32]} 29. Rc7 {[%emt 0:00:05]} Rxa6 {[%emt 0:00:22]} 30. Rc8+ {[%emt 0:00:13]} Ke7 {[%emt 0:00:07]} 31. Rxc3 {[%emt 0:00:04] An interesting draw.   Weighted Error Value: White=0.01 (flawless) /Black=0.01 (flawless)} 1/2-1/2

[Event "97th Argentine Championship 2022"]
[Site "Barichole"]
[Date "2022.12.09"]
[Round "10.3"]
[White "Krysa, Leandro"]
[Black "Pichot, Alan"]
[Result "1/2-1/2"]
[ECO "A29"]
[WhiteElo "2524"]
[BlackElo "2637"]
[Annotator "TA"]
[PlyCount "60"]
[EventDate "2022.12.01"]
[EventType "tourn"]
[EventCountry "ARG"]
[SourceTitle "playchess.com"]
[Source "ChessBase"]
[SourceQuality "1"]
[TimeControl "40/5400+30:1800+30"]

{[%evp 11,60,8,22,4,20,17,22,30,45,33,25,43,55,52,57,53,67,64,67,62,70,73,67,55,64,58,46,41,102,85,245,248,265,283,271,191,167,172,245,257,284,281,258,21,21,22,258,6,6,0,0]} 1. c4 {[%emt 0:00:03]} Nf6 {[%emt 0:01:03]} 2. Nc3 {[%emt 0:00:14]} e5 {[%emt 0:00:30]} 3. Nf3 {[%emt 0:00:09]} Nc6 {[%emt 0:00:42]} 4. g3 {[%emt 0:00:10]} Nd4 {[%emt 0:02:58]} 5. Bg2 {[%emt 0:00:14]} Nxf3+ {[%emt 0:00:17]} 6. Bxf3 {[%emt 0:00:10]} Bc5 {[%emt 0:00:35]} 7. e3 {[%emt 0:06:14] A29: English Opening: Four Knights Variation with 4 g3.} O-O {[%emt 0:17:09]} 8. O-O {[%emt 0:15:00]} d6 {[%emt 0:02:56]} 9. d4 {[%emt 0:00:52]} Bb6 {[%emt 0:00:57]} 10. b4 {[%emt 0:04:13] aiming for c5.} c6 {[%emt 0:05:22]} 11. a4 {[%emt 0:08:13][%cal Ba2a4,Ba4a5][%mdl 32]} Qe7 {[%emt 0:05:08]} 12. a5 {[%emt 0:08:40] [#]} e4 $146 {[%emt 0:05:19]} ({Predecessor:} 12... Bc7 13. e4 exd4 14. Qxd4 Bh3 15. Rd1 a6 16. Bb2 h5 17. Re1 Rfe8 18. Ne2 Bg4 {1-0 (41) Willert Betker,S-Wilhelmi,D ICCF email 2007}) 13. Bg2 {[%emt 0:12:41]} Bd8 {[%emt 0:02:59]} 14. d5 {[%emt 0:01:20]} h5 {[%emt 0:09:08][%cal Oh5h4]} 15. dxc6 {[%emt 0:09:12] White is more active.} bxc6 {[%emt 0:00:36][%cal Oh5h4]} 16. b5 {[%emt 0:00:09] Inhibits h4.} Bg4 {[%emt 0:03:59]} 17. Qd2 {[%emt 0:08:19]} (17. Qa4 $5 {[%cal Rb5c6]}) 17... Rc8 {[%emt 0:03:24][%cal Oh5h4]} 18. Bb2 {[%emt 0:02:32]} Qe6 {[%emt 0:01:56]} 19. bxc6 {[%emt 0:02:29]} (19. Rfc1 {simplifies} h4 20. bxc6 Rxc6 21. Nb5) 19... Qxc4 {[%emt 0:05:00]} ({Better is} 19... Rxc6 $14 20. Nb5 Qxc4 21. Nxa7 (21. Nxd6 Qb3 $14) 21... Ra6) 20. Rfc1 $1 $16 {[%emt 0:04:18]} ({Much worse is} 20. Qxd6 $6 Rxc6 21. Qa3 Bf3 $11) (20. h3 $6 Bf5 $11) 20... d5 $2 {[%emt 0:02:01]} (20... Rxc6 $2 21. Nxe4 $1 {[%mdl 512]} Nxe4 22. Rxc4 Nxd2 23. Rxc6 $18) (20... Qxc6 $16 21. Nxe4 Nxe4) 21. h3 $18 {[%emt 0:05:46]} Bf3 {[%emt 0:19:15]} 22. Bf1 {[%emt 0:01:41] Prevents d4.} Qxc6 {[%emt 0:00:13] [#]} 23. Nxe4 $1 {[%emt 0:03:19][%mdl 576] Discovered Attack} Qd7 {[%emt 0:02:19]} 24. Rxc8 {[%emt 0:01:36]} Qxc8 {[%emt 0:00:56] [#]} (24... Nxe4 {was necessary.} 25. Qd4 f6) 25. Nxf6+ $1 {[%emt 0:00:32]} Bxf6 {[%emt 0:00:09]} 26. Bxf6 {[%emt 0:00:19]} gxf6 {[%emt 0:00:05]} 27. h4 $2 {[%emt 0:02:44]} (27. Qd4 $18) 27... Qf5 $11 {[%emt 0:00:40]} 28. Qd4 {[%emt 0:01:26]} Rb8 $2 {[%emt 0:01:43]} (28... Be4 $1 $11 {and Black is okay.} 29. Bg2 (29. Qxa7 $2 {is a self mate.} Qf3) 29... Bxg2 30. Kxg2 Qe4+ 31. Qxe4 dxe4) 29. Bg2 $2 {[%emt 0:01:05]} (29. Qxa7 $18 Rb2 30. Qc7 (30. Qa8+ $2 Kg7 $19)) 29... a6 {[%emt 0:03:08]} 30. Qf4 {[%emt 0:01:17]} Qxf4 {[%emt 0:05:03] Weighted Error Value: White=0.27 (precise) /Black=0.30} 1/2-1/2